fUST/lending_fUST_20240518
["ID","MTS","AMOUNT","RATE_DAILY","PERIOD"]
[327381634,1716033042403,-151.0,0.00016438,2]
[327381635,1716033042412,-151.0,0.00016438,2]
[327381636,1716033042421,-500.0,0.00016438,2]
[327381637,1716033042430,-500.0,0.00016438,2]
[327381638,1716033042439,-151.0,0.00016438,2]
[327381639,1716033042450,-500.0,0.00016438,2]
[327381640,1716033042459,-151.0,0.00016438,2]
[327381641,1716033042468,-540.39,0.00016438,2]
[327381642,1716033042477,-500.0,0.00016438,2]
[327381643,1716033042487,-500.0,0.00016438,2]
[327381644,1716033042496,-256.0234,0.00016438,2]
[327381645,1716033042506,-500.0,0.00016438,2]
[327381646,1716033042515,-597.62,0.00016438,2]
[327381647,1716033042524,-151.0,0.00016438,2]
[327381648,1716033042534,-151.0,0.00016438,2]
[327381649,1716033042544,-500.0,0.00016438,2]
[327381650,1716033042553,-151.0,0.00016438,2]
[327381651,1716033042563,-151.0,0.00016438,2]
[327381652,1716033042572,-151.0,0.00016438,2]
[327381653,1716033042582,-151.0,0.00016438,2]
[327381654,1716033042591,-151.47818068,0.00016438,2]
[327381655,1716033042600,-500.0,0.00016438,2]
[327381656,1716033042610,-500.0,0.00016438,2]
[327381657,1716033042620,-151.0,0.00016438,2]
[327381658,1716033042629,-151.0,0.00016438,2]
[327381659,1716033042640,-500.0,0.00016438,2]
[327381660,1716033042649,-151.0,0.00016438,2]
[327381661,1716033042658,-151.0,0.00016438,2]
[327381662,1716033042667,-283.18,0.00016438,2]
[327381663,1716033042676,-500.0,0.00016438,2]
[327381664,1716033042685,-151.0,0.00016438,2]
[327381677,1716033042779,-151.0,0.00016438,2]
[327381678,1716033042789,-151.0,0.00016438,2]
[327381679,1716033042798,-151.0,0.00016438,2]
[327381680,1716033042807,-151.0,0.00016438,2]
[327381681,1716033042817,-151.0,0.00016438,2]
[327381682,1716033042825,-151.0,0.00016438,2]
[327381683,1716033042834,-500.0,0.00016438,2]
[327381684,1716033042844,-151.0,0.00016438,2]
[327381685,1716033042853,-183.48156,0.00016438,2]
[327381686,1716033042862,-500.0,0.00016438,2]
[327381688,1716033042871,-1073.97,0.00016438,2]
[327381690,1716033042880,-3717.39044449,0.00016438,2]
[327381727,1716033043280,-1676.18955551,0.00016438,2]
[327381729,1716033043289,-255.65602013,0.00016438,2]
[327381901,1716033045864,-244.58299973,0.00016437,2]
[327381902,1716033045874,-154.7833188,0.00016437,2]
[327381903,1716033045883,-249.77186549,0.00016438,2]
[327381951,1716033447792,620.99,0.00016438,4]
[327381961,1716034037158,-5114.565652,9.015e-05,2]
[327381962,1716034046113,-154.7215013,9.014e-05,2]
[327381963,1716034046133,-7959.94810751,9.014e-05,2]
[327381971,1716034149093,-330.96158487,8.908e-05,2]
[327381972,1716034149115,-2634.32657847,8.908e-05,2]
[327381973,1716034149146,-7.61668276,8.909e-05,2]
[327381974,1716034152087,-505.86780584,8.909e-05,2]
[327381975,1716034152107,-370.98329006,8.909e-05,2]
[327381976,1716034152128,-84.46569367,8.91e-05,2]
[327381977,1716034152156,-71.59382861,8.91e-05,2]
[327381978,1716034152179,-2597.41542727,9.009e-05,2]
[327381979,1716034152199,-11042.9167761,9.009e-05,2]
[327381980,1716034152221,-186.18288166,9.009e-05,2]
[327381981,1716034152242,-1358.53942485,9.01e-05,2]
[327381982,1716034152263,-1337.93312201,9.01e-05,2]
[327381983,1716034152286,-1896.23906673,9.01e-05,2]
[327381984,1716034152308,-10672.6871056,9.011e-05,2]
[327381985,1716034153090,-48729.87874883,9.011e-05,2]
[327381986,1716034153111,-295.43967051,9.012e-05,2]
[327381987,1716034153131,-250.36109787,9.012e-05,2]
[327381988,1716034153151,-4473.50197947,9.012e-05,2]
[327381989,1716034153174,-999.07995331,9.012e-05,2]
[327381990,1716034153194,-412.67758215,9.012e-05,2]
[327381991,1716034153214,-154.79876161,9.012e-05,2]
[327381992,1716034153233,-294.15381918,9.012e-05,2]
[327381993,1716034153253,-1977.97592902,9.012e-05,2]
[327381994,1716034153275,-461.42833295,9.012e-05,2]
[327381995,1716034153296,-260.91918383,9.013e-05,2]
[327381996,1716034153315,-156.75733946,9.014e-05,2]
[327381997,1716034153335,-8602.06485079,9.014e-05,2]
[327381998,1716034154119,-7085.66095495,9.014e-05,2]
[327381999,1716034154142,-19785.434348,9.015e-05,2]
[327382000,1716034154163,-6128.8526326,9.354e-05,2]
[327382001,1716034154185,-9398.82663272,0.0001,2]
[327382003,1716034154205,-277.75241642,0.0001,2]
[327382005,1716034154226,-1450.46017766,0.0001,2]
[327382006,1716034154246,-625.13739777,0.00010609,2]
[327382007,1716034154270,-2464.79090469,0.00010709,2]
[327382008,1716034154291,-307.59750505,0.0001071,2]
[327382009,1716034154312,-492.92,0.00010959,2]
[327382010,1716034154334,-625.13739774,0.00012041,2]
[327382011,1716034156094,-625.13739774,0.00013474,2]
[327382012,1716034156179,768.69660055,0.0001,2]
[327382013,1716034156724,156.3019629,9.014e-05,2]
[327382014,1716034160103,1094.19937552,9.999e-05,2]
[327382015,1716034160324,817.58871518,9.999e-05,2]
[327382016,1716034163001,330.96158487,9.999e-05,2]
[327382017,1716034164677,20678.78004773,9.013e-05,2]
[327382018,1716034164698,498.51039689,9.013e-05,2]
[327382064,1716034232087,-273.37336231,8.923e-05,2]
[327382066,1716034232096,-207.34451471,9.012e-05,2]
[327382068,1716034232105,-3735.44408059,9.013e-05,2]
[327382070,1716034232116,-34489.83132922,9.013e-05,2]
[327382072,1716034232126,-292.60916471,9.998e-05,2]
[327382074,1716034232135,-513.09271342,9.999e-05,2]
[327382076,1716034232144,-2754.70389844,0.000129,2]
[327382078,1716034232153,-1105.755168,0.00013699,2]
[327382080,1716034232162,-3000.0,0.00013699,2]
[327382082,1716034232172,-3289.1604881,0.00013699,2]
[327382085,1716034232181,-216.2891354,0.00013699,2]
[327382087,1716034232202,-283.58690319,0.00013799,2]
[327382089,1716034232212,-1084.51096583,0.000138,2]
[327382091,1716034232222,-920.93404353,0.00014,2]
[327382094,1716034232232,-625.13739774,0.00014906,2]
[327382096,1716034232242,-1766.30666923,0.00014997,2]
[327382098,1716034232252,-1190.55795189,0.00014998,2]
[327382100,1716034232263,-2597.41542727,0.00014998,2]
[327382102,1716034232272,-606.60197939,0.00014998,2]
[327382103,1716034232282,-334.10800289,0.00014998,2]
[327382104,1716034232292,-2649.67082956,0.00014999,2]
[327382105,1716034232301,-2902.27769128,0.00014999,2]
[327382106,1716034232311,-3699.56949019,0.00015,2]
[327382107,1716034232321,-1149.07076386,0.00015,2]
[327382108,1716034232331,-2107.5414282,0.00015,2]
[327382109,1716034232340,-942.53705457,0.00015,2]
[327382110,1716034232350,-491.35425183,0.00015,2]
[327382111,1716034232359,-43840.5840999,0.00015,2]
[327382127,1716034238998,-36159.4159001,0.00015,2]
[327382128,1716034239008,-155.13643218,0.00015,2]
[327382129,1716034239017,-189.5809831,0.00015894,2]
[327382130,1716034239027,-381.7185769,0.00015997,2]
[327382131,1716034239036,-188.09848396,0.00015998,2]
[327382132,1716034239045,-2787.14117433,0.00015998,2]
[327382133,1716034239054,-233.23518797,0.00015998,2]
[327382134,1716034239064,-7893.2342889,0.00015998,2]
[327382135,1716034239073,-528.76307526,0.00015998,2]
[327382136,1716034239083,-155.11480149,0.00015998,2]
[327382137,1716034239092,-154.92237436,0.00015998,2]
[327382138,1716034239102,-154.77779437,0.00015998,2]
[327382139,1716034239111,-154.79876161,0.00015998,2]
[327382140,1716034239120,-160.92145313,0.00015998,2]
[327382141,1716034239134,-1101.24786691,0.00016,2]
[327382142,1716034239144,-7967.64444353,0.00016,2]
[327382143,1716034239153,-12703.0,0.00016,2]
[327382144,1716034239162,-413.25192883,0.00016,2]
[327382145,1716034239172,-3095.46719057,0.00016,2]
[327382146,1716034239183,-417.06273246,0.00016202,2]
[327382147,1716034239192,-1534.161727,0.00016238,2]
[327382148,1716034239202,-535.65130739,0.00016273,2]
[327382149,1716034239213,-625.13739774,0.00016338,2]
[327382150,1716034239222,-2000.0,0.00016338,2]
[327382151,1716034239231,-88888.0,0.00016338,2]
[327382152,1716034239241,-4222.10020806,0.00016401,2]
[327382153,1716034239251,-1042.94758507,0.00016434,2]
[327382154,1716034239260,-203.59163727,0.00016434,2]
[327382155,1716034239273,-36315.76331209,0.00016436,3]
[327382156,1716034239283,-5121.15581997,0.00016436,2]
[327382157,1716034239293,-160.0,0.00016437,2]
[327382158,1716034239303,-2045.09005458,0.00016438,2]
[327382159,1716034239312,-225.10056527,0.00016438,2]
[327382160,1716034239322,-500.0,0.00016438,2]
[327382161,1716034239332,-547.46510442,0.00016438,2]
[327382162,1716034239341,-501.63240762,0.00016438,2]
[327382163,1716034239350,-500.0,0.00016438,2]
[327382164,1716034239360,-500.0,0.00016438,2]
[327382165,1716034239369,-151.0,0.00016438,2]
[327382166,1716034239380,-500.63121711,0.00016438,2]
[327382167,1716034239390,-500.0,0.00016438,2]
[327382168,1716034239400,-500.0,0.00016438,2]
[327382169,1716034239410,-500.0,0.00016438,2]
[327382170,1716034239420,-503.16445002,0.00016438,2]
[327382171,1716034239430,-500.0,0.00016438,2]
[327382172,1716034239439,-500.0,0.00016438,2]
[327382173,1716034239449,-442.77818807,0.00016438,2]
[327382174,1716034239459,-500.0,0.00016438,2]
[327382175,1716034239468,-500.0,0.00016438,2]
[327382176,1716034239478,-395.89822196,0.00016438,2]
[327382177,1716034239488,-502.91493688,0.00016438,2]
[327382178,1716034239497,-500.92432665,0.00016438,2]
[327382179,1716034239507,-500.0,0.00016438,2]
[327382180,1716034239516,-387.43567427,0.00016438,2]
[327382181,1716034239526,-501.09768444,0.00016438,2]
[327382182,1716034239535,-500.0,0.00016438,2]
[327382183,1716034239545,-271.91801612,0.00016438,2]
[327382184,1716034239554,-500.0,0.00016438,2]
[327382185,1716034239563,-500.0,0.00016438,2]
[327382186,1716034239572,-349.36928426,0.00016438,2]
[327382187,1716034239582,-151.0,0.00016438,2]
[327382188,1716034239591,-151.0,0.00016438,2]
[327382189,1716034239600,-500.0,0.00016438,2]
[327382190,1716034239610,-500.0,0.00016438,2]
[327382191,1716034239620,-500.0,0.00016438,2]
[327382192,1716034239629,-151.67291429,0.00016438,2]
[327382193,1716034239638,-500.0,0.00016438,2]
[327382194,1716034239647,-151.0,0.00016438,2]
[327382195,1716034239657,-151.0,0.00016438,2]
[327382196,1716034239666,-500.0,0.00016438,2]
[327382197,1716034239675,-500.0,0.00016438,2]
[327382198,1716034239685,-500.0,0.00016438,2]
[327382199,1716034239694,-500.0,0.00016438,2]
[327382200,1716034239703,-500.0,0.00016438,2]
[327382201,1716034239713,-280.79903579,0.00016438,2]
[327382202,1716034239723,-500.0,0.00016438,2]
[327382203,1716034239732,-151.0,0.00016438,2]
[327382204,1716034239741,-151.0,0.00016438,2]
[327382205,1716034239751,-361.61461553,0.00016438,2]
[327382206,1716034239760,-500.0,0.00016438,2]
[327382207,1716034239769,-151.0,0.00016438,2]
[327382208,1716034239778,-500.0,0.00016438,2]
[327382209,1716034239791,-500.0,0.00016438,2]
[327382210,1716034239800,-509.9230235,0.00016438,2]
[327382211,1716034239809,-168.99092306,0.00016438,2]
[327382212,1716034239818,-500.0,0.00016438,2]
[327382213,1716034239828,-405.0,0.00016438,2]
[327382214,1716034239837,-405.0,0.00016438,2]
[327382215,1716034239847,-405.0,0.00016438,2]
[327382217,1716034239856,-405.0,0.00016438,2]
[327382219,1716034239867,-500.0,0.00016438,2]
[327382221,1716034239876,-500.0,0.00016438,2]
[327382222,1716034239886,-500.0,0.00016438,2]
[327382223,1716034239895,-277.09716985,0.00016438,2]
[327382224,1716034239904,-504.0,0.00016438,2]
[327382225,1716034239913,-500.0,0.00016438,2]
[327382226,1716034239922,-500.0,0.00016438,2]
[327382227,1716034239931,-501.74273877,0.00016438,2]
[327382228,1716034239941,-500.0,0.00016438,2]
[327382229,1716034239950,-500.0,0.00016438,2]
[327382230,1716034239959,-501.95000294,0.00016438,2]
[327382231,1716034239969,-502.66221055,0.00016438,2]
[327382232,1716034239978,-500.0,0.00016438,2]
[327382233,1716034239987,-500.0,0.00016438,2]
[327382235,1716034239997,-500.0,0.00016438,2]
[327382236,1716034240007,-500.0,0.00016438,2]
[327382237,1716034240016,-500.0,0.00016438,2]
[327382238,1716034240025,-500.0,0.00016438,2]
[327382239,1716034240034,-221.15,0.00016438,2]
[327382240,1716034240043,-320.10402687,0.00016438,2]
[327382241,1716034240052,-500.0,0.00016438,2]
[327382242,1716034240062,-152.930151,0.00016438,2]
[327382243,1716034240072,-372.52263561,0.00016438,2]
[327382244,1716034240081,-335.53726188,0.00016438,2]
[327382245,1716034240090,-500.0,0.00016438,2]
[327382246,1716034240100,-505.28045738,0.00016438,2]
[327382247,1716034240109,-421.28285617,0.00016438,2]
[327382248,1716034240118,-500.0,0.00016438,2]
[327382249,1716034240127,-500.0,0.00016438,2]
[327382250,1716034240136,-500.0,0.00016438,2]
[327382251,1716034240146,-500.0,0.00016438,2]
[327382252,1716034240155,-425.95119997,0.00016438,2]
[327382253,1716034240165,-500.0,0.00016438,2]
[327382254,1716034240174,-500.0,0.00016438,2]
[327382255,1716034240183,-500.0,0.00016438,2]
[327382256,1716034240193,-500.0,0.00016438,2]
[327382257,1716034240202,-500.0,0.00016438,2]
[327382258,1716034240213,-285.71224732,0.00016438,2]
[327382259,1716034240222,-500.0,0.00016438,2]
[327382260,1716034240231,-500.0,0.00016438,2]
[327382261,1716034240241,-500.0,0.00016438,2]
[327382262,1716034240250,-500.0,0.00016438,2]
[327382263,1716034240259,-500.0,0.00016438,2]
[327382264,1716034240269,-151.0,0.00016438,2]
[327382265,1716034240278,-500.0,0.00016438,2]
[327382266,1716034240287,-500.0,0.00016438,2]
[327382267,1716034240297,-500.0,0.00016438,2]
[327382268,1716034240306,-500.0,0.00016438,2]
[327382269,1716034240315,-500.0,0.00016438,2]
[327382270,1716034240325,-500.0,0.00016438,2]
[327382271,1716034240334,-583.55215283,0.00016438,2]
[327382272,1716034240343,-500.0,0.00016438,2]
[327382273,1716034240352,-500.0,0.00016438,2]
[327382274,1716034240361,-500.0,0.00016438,2]
[327382275,1716034240371,-500.0,0.00016438,2]
[327382276,1716034240380,-500.0,0.00016438,2]
[327382277,1716034240390,-500.0,0.00016438,2]
[327382278,1716034240399,-500.0,0.00016438,2]
[327382279,1716034240409,-500.0,0.00016438,2]
[327382280,1716034240418,-459.29,0.00016438,2]
[327382281,1716034240428,-500.0,0.00016438,2]
[327382282,1716034240437,-500.0,0.00016438,2]
[327382283,1716034240447,-500.0,0.00016438,2]
[327382284,1716034240457,-500.0,0.00016438,2]
[327382285,1716034240467,-500.0,0.00016438,2]
[327382286,1716034240477,-500.0,0.00016438,2]
[327382287,1716034240488,-500.0,0.00016438,2]
[327382288,1716034240497,-500.0,0.00016438,2]
[327382289,1716034240507,-214.8438112,0.00016438,2]
[327382290,1716034240516,-500.0,0.00016438,2]
[327382291,1716034240526,-500.0,0.00016438,2]
[327382292,1716034240535,-500.0,0.00016438,2]
[327382293,1716034240544,-500.0,0.00016438,2]
[327382294,1716034240554,-500.0,0.00016438,2]
[327382295,1716034240563,-500.0,0.00016438,2]
[327382296,1716034240572,-510.18393568,0.00016438,2]
[327382297,1716034240581,-500.0,0.00016438,2]
[327382298,1716034240590,-558.99636393,0.00016438,2]
[327382299,1716034240599,-500.0,0.00016438,2]
[327382300,1716034240608,-443.50746496,0.00016438,2]
[327382301,1716034240617,-500.0,0.00016438,2]
[327382302,1716034240627,-500.0,0.00016438,2]
[327382303,1716034240636,-500.0,0.00016438,2]
[327382304,1716034240646,-500.0,0.00016438,2]
[327382305,1716034240655,-283.18,0.00016438,2]
[327382306,1716034240664,-500.0,0.00016438,2]
[327382307,1716034240673,-503.64958449,0.00016438,2]
[327382308,1716034240683,-151.0,0.00016438,2]
[327382309,1716034240692,-151.0,0.00016438,2]
[327382310,1716034240701,-151.0,0.00016438,2]
[327382311,1716034240710,-151.0,0.00016438,2]
[327382312,1716034240719,-151.0,0.00016438,2]
[327382313,1716034240729,-500.0,0.00016438,2]
[327382314,1716034240738,-151.0,0.00016438,2]
[327382315,1716034240748,-500.0,0.00016438,2]
[327382316,1716034240758,-500.0,0.00016438,2]
[327382317,1716034240767,-221.2409615,0.00016438,2]
[327382318,1716034240777,-500.0,0.00016438,2]
[327382319,1716034240790,-500.0,0.00016438,2]
[327382320,1716034240799,-500.0,0.00016438,2]
[327382321,1716034240809,-500.0,0.00016438,2]
[327382322,1716034240819,-157.898362,0.00016438,2]
[327382323,1716034240829,-504.03638865,0.00016438,2]
[327382324,1716034240839,-500.0,0.00016438,2]
[327382325,1716034240848,-500.0,0.00016438,2]
[327382326,1716034240857,-500.0,0.00016438,2]
[327382327,1716034240869,-151.47818068,0.00016438,2]
[327382328,1716034240878,-500.0,0.00016438,2]
[327382329,1716034240888,-500.0,0.00016438,2]
[327382330,1716034240898,-517.93,0.00016438,2]
[327382331,1716034240907,-500.0,0.00016438,2]
[327382332,1716034240917,-500.0,0.00016438,2]
[327382333,1716034240926,-500.0,0.00016438,2]
[327382334,1716034240936,-500.0,0.00016438,2]
[327382335,1716034240945,-500.0,0.00016438,2]
[327382336,1716034240955,-500.0,0.00016438,2]
[327382337,1716034240965,-500.0,0.00016438,2]
[327382338,1716034240975,-502.69958719,0.00016438,2]
[327382339,1716034240985,-500.0,0.00016438,2]
[327382340,1716034240994,-500.0,0.00016438,2]
[327382341,1716034241004,-500.0,0.00016438,2]
[327382342,1716034241014,-500.0,0.00016438,2]
[327382343,1716034241023,-520.75694388,0.00016438,2]
[327382344,1716034241032,-500.0,0.00016438,2]
[327382345,1716034241042,-628.60831582,0.00016438,2]
[327382346,1716034241051,-611.2,0.00016438,2]
[327382347,1716034241060,-500.0,0.00016438,2]
[327382348,1716034241069,-500.0,0.00016438,2]
[327382349,1716034241078,-500.0,0.00016438,2]
[327382350,1716034241088,-500.0,0.00016438,2]
[327382351,1716034241097,-151.0,0.00016438,2]
[327382352,1716034241107,-151.122954,0.00016438,2]
[327382353,1716034241117,-500.0,0.00016438,2]
[327382354,1716034241126,-500.0,0.00016438,2]
[327382355,1716034241136,-500.0,0.00016438,2]
[327382356,1716034241146,-500.0,0.00016438,2]
[327382357,1716034241154,-500.0,0.00016438,2]
[327382358,1716034241164,-500.0,0.00016438,2]
[327382359,1716034241174,-500.0,0.00016438,2]
[327382360,1716034241183,-500.0,0.00016438,2]
[327382361,1716034241192,-500.0,0.00016438,2]
[327382362,1716034241201,-500.0,0.00016438,2]
[327382363,1716034241211,-500.0,0.00016438,2]
[327382364,1716034241220,-500.0,0.00016438,2]
[327382365,1716034241230,-598.28908808,0.00016438,2]
[327382366,1716034241247,-500.0,0.00016438,2]
[327382367,1716034241260,-500.0,0.00016438,2]
[327382368,1716034241270,-500.0,0.00016438,2]
[327382369,1716034241280,-227.38964441,0.00016438,2]
[327382370,1716034241289,-151.0,0.00016438,2]
[327382371,1716034241299,-500.0,0.00016438,2]
[327382372,1716034241442,-500.0,0.00016438,2]
[327382373,1716034241455,-290.14951,0.00016438,2]
[327382374,1716034241467,-500.0,0.00016438,2]
[327382375,1716034241476,-553.92242521,0.00016438,2]
[327382376,1716034241486,-500.0,0.00016438,2]
[327382377,1716034241495,-500.0,0.00016438,2]
[327382378,1716034241504,-365.38337643,0.00016438,2]
[327382379,1716034241513,-2006.467426,0.00016438,2]
[327382380,1716034241523,-2006.467426,0.00016438,2]
[327382381,1716034241532,-2006.467426,0.00016438,2]
[327382382,1716034241543,-500.0,0.00016438,2]
[327382383,1716034241553,-500.0,0.00016438,2]
[327382384,1716034241562,-2006.467426,0.00016438,2]
[327382385,1716034241571,-2006.467426,0.00016438,2]
[327382386,1716034241580,-2006.467426,0.00016438,2]
[327382387,1716034241590,-325.31449427,0.00016438,2]
[327382388,1716034241599,-500.0,0.00016438,2]
[327382389,1716034241609,-151.0,0.00016438,2]
[327382390,1716034241618,-151.0,0.00016438,2]
[327382391,1716034241627,-199.341115,0.00016438,2]
[327382392,1716034241637,-151.0,0.00016438,2]
[327382393,1716034241646,-151.0,0.00016438,2]
[327382394,1716034241655,-151.0,0.00016438,2]
[327382395,1716034241665,-500.0,0.00016438,2]
[327382396,1716034241674,-500.0,0.00016438,2]
[327382397,1716034241683,-500.0,0.00016438,2]
[327382398,1716034241693,-500.0,0.00016438,2]
[327382399,1716034241702,-712.9,0.00016438,2]
[327382400,1716034241711,-500.0,0.00016438,2]
[327382401,1716034241721,-500.0,0.00016438,2]
[327382402,1716034241730,-500.0,0.00016438,2]
[327382403,1716034241739,-500.0,0.00016438,2]
[327382404,1716034241749,-500.0,0.00016438,2]
[327382405,1716034241758,-500.0,0.00016438,2]
[327382406,1716034241767,-1051.193516,0.00016438,2]
[327382407,1716034241776,-1051.193516,0.00016438,2]
[327382408,1716034241787,-1051.193516,0.00016438,2]
[327382409,1716034241799,-500.0,0.00016438,2]
[327382410,1716034241808,-500.0,0.00016438,2]
[327382411,1716034241818,-1051.193516,0.00016438,2]
[327382412,1716034241826,-1051.193516,0.00016438,2]
[327382413,1716034241837,-1051.193516,0.00016438,2]
[327382414,1716034241847,-500.0,0.00016438,2]
[327382415,1716034241856,-500.0,0.00016438,2]
[327382416,1716034241865,-503.90597654,0.00016438,2]
[327382417,1716034241876,-500.0,0.00016438,2]
[327382418,1716034241886,-500.0,0.00016438,2]
[327382419,1716034241895,-503.02265377,0.00016438,2]
[327382420,1716034241904,-198.460449,0.00016438,2]
[327382421,1716034241913,-316.511688,0.00016438,2]
[327382422,1716034241923,-198.460449,0.00016438,2]
[327382423,1716034241932,-316.511688,0.00016438,2]
[327382424,1716034241941,-198.460449,0.00016438,2]
[327382425,1716034241952,-316.511688,0.00016438,2]
[327382426,1716034241962,-509.20786783,0.00016438,2]
[327382427,1716034241976,-500.0,0.00016438,2]
[327382428,1716034241985,-316.511688,0.00016438,2]
[327382429,1716034241995,-500.0,0.00016438,2]
[327382430,1716034242004,-500.0,0.00016438,2]
[327382431,1716034242013,-316.511688,0.00016438,2]
[327382432,1716034242022,-316.511688,0.00016438,2]
[327382433,1716034242032,-198.460449,0.00016438,2]
[327382434,1716034242041,-198.460449,0.00016438,2]
[327382435,1716034242055,-198.460449,0.00016438,2]
[327382436,1716034242064,-470.50456751,0.00016438,2]
[327382437,1716034242074,-500.0,0.00016438,2]
[327382438,1716034242083,-1005.65,0.00016438,2]
[327382439,1716034242092,-500.0,0.00016438,2]
[327382440,1716034242102,-500.0,0.00016438,2]
[327382441,1716034242111,-500.0,0.00016438,2]
[327382442,1716034242120,-151.0,0.00016438,2]
[327382443,1716034242129,-151.0,0.00016438,2]
[327382444,1716034242139,-151.0,0.00016438,2]
[327382445,1716034242149,-500.0,0.00016438,2]
[327382446,1716034242158,-500.0,0.00016438,2]
[327382447,1716034242168,-151.0,0.00016438,2]
[327382448,1716034242177,-151.0,0.00016438,2]
[327382449,1716034242187,-151.0,0.00016438,2]
[327382450,1716034242196,-500.0,0.00016438,2]
[327382451,1716034242205,-500.0,0.00016438,2]
[327382452,1716034242215,-151.0,0.00016438,2]
[327382453,1716034242225,-500.0,0.00016438,2]
[327382454,1716034242234,-151.0,0.00016438,2]
[327382455,1716034242243,-500.0,0.00016438,2]
[327382456,1716034242253,-502.38553037,0.00016438,2]
[327382457,1716034242262,-246.36773708,0.00016438,2]
[327382458,1716034242271,-500.0,0.00016438,2]
[327382459,1716034242280,-542.4922578,0.00016438,2]
[327382460,1716034242290,-500.0,0.00016438,2]
[327382461,1716034242299,-500.0,0.00016438,2]
[327382462,1716034242309,-500.0,0.00016438,2]
[327382463,1716034242318,-500.0,0.00016438,2]
[327382464,1716034242327,-500.0,0.00016438,2]
[327382465,1716034242337,-500.0,0.00016438,2]
[327382466,1716034242346,-500.0,0.00016438,2]
[327382467,1716034242355,-151.0,0.00016438,2]
[327382468,1716034242365,-500.0,0.00016438,2]
[327382469,1716034242375,-500.0,0.00016438,2]
[327382470,1716034242384,-2533.95,0.00016438,2]
[327382471,1716034242393,-500.0,0.00016438,2]
[327382472,1716034242402,-471.02575382,0.00016438,2]
[327382473,1716034242411,-500.0,0.00016438,2]
[327382474,1716034242420,-500.0,0.00016438,2]
[327382475,1716034242430,-500.0,0.00016438,2]
[327382476,1716034242439,-545.70790794,0.00016438,2]
[327382477,1716034242449,-500.0,0.00016438,2]
[327382478,1716034242458,-500.0,0.00016438,2]
[327382479,1716034242468,-500.0,0.00016438,2]
[327382480,1716034242478,-500.0,0.00016438,2]
[327382481,1716034242487,-500.0,0.00016438,2]
[327382482,1716034242497,-634.4,0.00016438,2]
[327382483,1716034242506,-500.0,0.00016438,2]
[327382484,1716034242515,-500.0,0.00016438,2]
[327382485,1716034242524,-577.35964409,0.00016438,2]
[327382486,1716034242533,-500.0,0.00016438,2]
[327382487,1716034242543,-500.0,0.00016438,2]
[327382488,1716034242552,-151.0,0.00016438,2]
[327382489,1716034242561,-657.69,0.00016438,2]
[327382490,1716034242570,-257.65636126,0.00016438,2]
[327382491,1716034242580,-553.48164581,0.00016438,2]
[327382492,1716034242589,-500.0,0.00016438,2]
[327382493,1716034242599,-452.99157442,0.00016438,2]
[327382494,1716034242608,-500.0,0.00016438,2]
[327382495,1716034242617,-500.0,0.00016438,2]
[327382496,1716034242627,-500.0,0.00016438,2]
[327382497,1716034242636,-411.52,0.00016438,2]
[327382498,1716034242645,-500.0,0.00016438,2]
[327382499,1716034242654,-500.0,0.00016438,2]
[327382500,1716034242663,-500.0,0.00016438,2]
[327382501,1716034242672,-500.0,0.00016438,2]
[327382502,1716034242681,-500.0,0.00016438,2]
[327382504,1716034242690,-500.0,0.00016438,2]
[327382506,1716034242700,-500.0,0.00016438,2]